[Event "AUT Bundesliga 2022-23"]
[Site "Jenbach"]
[Date "2022.11.03"]
[Round "1.14"]
[White "Baenziger, Fabian"]
[Black "Schwabeneder, Florian"]
[Result "1/2-1/2"]
[ECO "E62"]
[WhiteElo "2439"]
[BlackElo "2414"]
[Annotator "ChessBase"]
[PlyCount "61"]
[EventDate "2022.11.03"]
[EventType "team-tourn"]
[EventCountry "AUT"]
[SourceTitle "playchess.com"]
[Source "ChessBase"]
[SourceQuality "1"]
[TimeControl "40/5400+30:1800+30"]

1. d4 {[%emt 0:00:05]} Nf6 {[%emt 0:00:31]} 2. c4 {[%emt 0:00:24]} g6 {[%emt 0:00:27]} 3. g3 {[%emt 0:02:23]} Bg7 {[%emt 0:00:36]} 4. Bg2 {[%emt 0:00:10]} O-O {[%emt 0:00:23]} 5. Nc3 {[%emt 0:00:30]} d6 {[%emt 0:00:21]} 6. Nf3 {[%emt 0:00:07]} c6 {[%emt 0:01:31]} 7. O-O {[%emt 0:00:41]} Bf5 {[%emt 0:00:12]} 8. Re1 {[%emt 0:09:41]} Ne4 {[%emt 0:02:06]} 9. Qb3 {[%emt 0:00:08]} Nxc3 {[%emt 0:02:11]} 10. bxc3 {[%emt 0:00:24]} Bc8 {[%emt 0:00:28]} 11. e4 {[%emt 0:05:20]} Nd7 {[%emt 0:05:06]} 12. Ba3 {[%emt 0:08:17]} c5 {[%emt 0:30:26]} 13. e5 {[%emt 0:16:38]} dxe5 {[%emt 0:00:45]} 14. Nxe5 {[%emt 0:08:03]} Nxe5 {[%emt 0:02:18]} 15. dxe5 {[%emt 0:00:06]} Qc7 {[%emt 0:00:27]} 16. Qb5 {[%emt 0:08:22]} Bxe5 {[%emt 0:20:25]} 17. Bxc5 {[%emt 0:00:45]} a6 {[%emt 0:00:17]} 18. Qb4 {[%emt 0:00:09]} Bxc3 {[%emt 0:00:28]} 19. Qxc3 {[%emt 0:00:22]} Qxc5 {[%emt 0:00:07]} 20. Rab1 {[%emt 0:10:23]} Rb8 {[%emt 0:05:41]} 21. Qe5 {[%emt 0:11:09]} Qxe5 {[%emt 0:03:36]} 22. Rxe5 {[%emt 0:00:05]} Be6 {[%emt 0:09:04]} 23. Bxb7 {[%emt 0:04:05]} Bxc4 {[%emt 0:00:28]} 24. Rxe7 {[%emt 0:00:22]} Bxa2 {[%emt 0:01:28]} 25. Rc1 {[%emt 0:01:42]} Rfe8 {[%emt 0:05:39]} 26. Rxe8+ {[%emt 0:00:15]} Rxe8 {[%emt 0:00:06]} 27. Bxa6 {[%emt 0:00:04]} Be6 {[%emt 0:00:20]} 28. h4 {[%emt 0:00:30]} h6 {[%emt 0:00:10]} 29. Rc7 {[%emt 0:00:22]} Kg7 {[%emt 0:00:07]} 30. Bc4 {[%emt 0:00:06]} Bxc4 {[%emt 0:00:08]} 31. Rxc4 {[%emt 0:00:03]} 1/2-1/2

[Event "AUT Bundesliga 2022-23"]
[Site "Jenbach"]
[Date "2022.11.03"]
[Round "1.15"]
[White "Kilgus, Georg"]
[Black "Atlas, Valery"]
[Result "1/2-1/2"]
[ECO "A56"]
[WhiteElo "2397"]
[BlackElo "2412"]
[Annotator "ChessBase"]
[PlyCount "151"]
[EventDate "2022.11.03"]
[EventType "team-tourn"]
[EventCountry "AUT"]
[SourceTitle "playchess.com"]
[Source "ChessBase"]
[SourceQuality "1"]
[TimeControl "40/5400+30:1800+30"]

1. d4 {[%emt 0:00:02]} Nf6 {[%emt 0:00:06]} 2. c4 {[%emt 0:00:02]} c5 {[%emt 0:00:08]} 3. d5 {[%emt 0:00:03]} e5 {[%emt 0:00:05]} 4. Nc3 {[%emt 0:00:04]} d6 {[%emt 0:00:04]} 5. e4 {[%emt 0:00:02]} Be7 {[%emt 0:00:08]} 6. Bd3 {[%emt 0:00:54]} Nbd7 {[%emt 0:00:29]} 7. g3 {[%emt 0:00:05]} a6 {[%emt 0:01:21]} 8. a4 {[%emt 0:00:08]} b6 {[%emt 0:00:49]} 9. h4 {[%emt 0:10:24]} Nf8 {[%emt 0:04:06]} 10. Bd2 {[%emt 0:03:45]} h5 {[%emt 0:04:06]} 11. Nh3 {[%emt 0:05:23]} g6 {[%emt 0:11:55]} 12. Kf1 {[%emt 0:07:05]} N8h7 {[%emt 0:01:36]} 13. Kg2 {[%emt 0:00:35]} O-O {[%emt 0:03:18]} 14. a5 {[%emt 0:22:32]} bxa5 {[%emt 0:00:59]} 15. Qa4 {[%emt 0:00:09]} Nd7 {[%emt 0:14:06]} 16. Qxa5 {[%emt 0:01:37]} Qxa5 {[%emt 0:08:27]} 17. Rxa5 {[%emt 0:00:57]} Rb8 {[%emt 0:00:07]} 18. Rb1 {[%emt 0:06:42]} f6 {[%emt 0:02:25]} 19. Nd1 {[%emt 0:05:19]} Rf7 {[%emt 0:01:54]} 20. Bc2 {[%emt 0:04:39]} Nhf8 {[%emt 0:00:28]} 21. Ne3 {[%emt 0:00:29]} Bd8 {[%emt 0:08:27]} 22. Raa1 {[%emt 0:01:35]} Bb6 {[%emt 0:02:19]} 23. f3 {[%emt 0:05:02]} Ba7 {[%emt 0:06:06]} 24. b3 {[%emt 0:03:49]} Re7 {[%emt 0:02:32]} 25. Nf2 {[%emt 0:02:19]} Rf7 {[%emt 0:01:07]} 26. Rh1 {[%emt 0:02:54]} Rh7 {[%emt 0:02:44]} 27. Kf1 {[%emt 0:00:05]} Bb6 {[%emt 0:01:45]} 28. Ke2 {[%emt 0:00:11]} Bd8 {[%emt 0:01:58]} 29. Nd3 {[%emt 0:01:30]} Bb6 {[%emt 0:00:36]} 30. Rag1 {[%emt 0:02:57]} Kf7 {[%emt 0:02:11]} 31. f4 {[%emt 0:01:20]} Ke8 {[%emt 0:04:01]} 32. Kf2 {[%emt 0:03:13]} Kd8 {[%emt 0:02:16]} 33. Bd1 {[%emt 0:00:07]} Kc7 {[%emt 0:01:36]} 34. f5 {[%emt 0:00:11]} Ba7 {[%emt 0:01:54]} 35. fxg6 {[%emt 0:01:31]} Nxg6 {[%emt 0:00:08]} 36. Rf1 {[%emt 0:00:18]} Ne7 {[%emt 0:02:24]} 37. Kg2 {[%emt 0:00:36]} Bb7 {[%emt 0:01:40]} 38. Nf5 {[%emt 0:01:24]} Nxf5 {[%emt 0:02:22]} 39. Rxf5 {[%emt 0:00:03]} Rbh8 {[%emt 0:00:22]} 40. Be2 {[%emt 0:00:00]} Bc8 {[%emt 0:00:00]} 41. Nb2 {[%emt 0:09:45]} Kd8 {[%emt 0:03:51]} 42. Rhf1 {[%emt 0:00:24]} Bb6 {[%emt 0:03:04]} 43. Nd1 {[%emt 0:02:14]} Ke8 {[%emt 0:05:22]} 44. Ne3 {[%emt 0:00:24]} Kf7 {[%emt 0:03:29]} 45. Kh2 {[%emt 0:00:32]} Kg6 {[%emt 0:01:19]} 46. R5f2 {[%emt 0:00:59]} Bc7 {[%emt 0:02:09]} 47. Ra1 {[%emt 0:00:16]} Rd8 {[%emt 0:01:49]} 48. Bf1 {[%emt 0:01:18]} Nb8 {[%emt 0:00:56]} 49. Nf5 {[%emt 0:02:22]} a5 {[%emt 0:05:11]} 50. Ne3 {[%emt 0:08:29]} Na6 {[%emt 0:00:58]} 51. Bxa5 {[%emt 0:00:02]} Bxa5 {[%emt 0:03:01]} 52. Rxa5 {[%emt 0:00:02]} Nb4 {[%emt 0:00:39]} 53. Be2 {[%emt 0:03:00]} Rhh8 {[%emt 0:03:33]} 54. Rf1 {[%emt 0:00:18]} Rh7 {[%emt 0:01:11]} 55. Ra8 {[%emt 0:01:13]} Rhh8 {[%emt 0:00:14]} 56. Ra7 {[%emt 0:00:20]} Rd7 {[%emt 0:00:34]} 57. Rfa1 {[%emt 0:00:29]} Rxa7 {[%emt 0:01:05]} 58. Rxa7 {[%emt 0:00:03]} f5 {[%emt 0:01:57]} 59. exf5+ {[%emt 0:06:43]} Bxf5 {[%emt 0:00:05]} 60. Nxf5 {[%emt 0:00:50]} Kxf5 {[%emt 0:00:04]} 61. Rd7 {[%emt 0:01:19]} Ke4 {[%emt 0:00:17]} 62. Rxd6 {[%emt 0:00:50]} Ke3 {[%emt 0:00:05]} 63. Bf1 {[%emt 0:00:12]} e4 {[%emt 0:01:53]} 64. Bg2 {[%emt 0:01:03]} Nd3 {[%emt 0:00:37]} 65. Re6 {[%emt 0:03:27]} Nf2 {[%emt 0:00:05]} 66. d6 {[%emt 0:00:18]} Ra8 {[%emt 0:00:41]} 67. d7 {[%emt 0:00:28]} Ng4+ {[%emt 0:00:27]} 68. Kg1 {[%emt 0:00:47]} Ra1+ {[%emt 0:00:03]} 69. Bf1 {[%emt 0:00:02]} Rd1 {[%emt 0:00:05]} 70. Re7 {[%emt 0:01:41]} Kf3 {[%emt 0:02:01]} 71. b4 {[%emt 0:01:33]} Ne3 {[%emt 0:01:49]} 72. Rf7+ {[%emt 0:00:24]} Kxg3 {[%emt 0:00:06]} 73. bxc5 {[%emt 0:00:06]} Nxf1 {[%emt 0:00:12]} 74. Rxf1 {[%emt 0:00:07]} Rxd7 {[%emt 0:00:04]} 75. c6 {[%emt 0:01:13]} Rd6 {[%emt 0:01:44]} 76. Rf5 {[%emt 0:00:34]} 1/2-1/2

[Event "AUT Bundesliga 2022-23"]
[Site "Jenbach"]
[Date "2022.11.03"]
[Round "1.16"]
[White "Brunner, Nicolas"]
[Black "Singer, Christoph"]
[Result "1/2-1/2"]
[ECO "D37"]
[WhiteElo "2448"]
[BlackElo "2309"]
[Annotator "ChessBase"]
[PlyCount "61"]
[EventDate "2022.11.03"]
[EventType "team-tourn"]
[EventCountry "AUT"]
[SourceTitle "playchess.com"]
[Source "ChessBase"]
[SourceQuality "1"]
[TimeControl "40/5400+30:1800+30"]

1. d4 {[%emt 0:00:02]} d5 {[%emt 0:00:14]} 2. c4 {[%emt 0:00:03]} e6 {[%emt 0:00:12]} 3. Nf3 {[%emt 0:00:05]} Nf6 {[%emt 0:00:13]} 4. Nc3 {[%emt 0:00:06]} Be7 {[%emt 0:00:29]} 5. Bf4 {[%emt 0:00:08]} O-O {[%emt 0:00:21]} 6. e3 {[%emt 0:00:05]} b6 {[%emt 0:00:26]} 7. Rc1 {[%emt 0:00:20]} Bb7 {[%emt 0:01:31]} 8. Be2 {[%emt 0:00:11]} dxc4 {[%emt 0:01:29]} 9. Bxc4 {[%emt 0:00:34]} a6 {[%emt 0:01:53]} 10. a3 {[%emt 0:04:22]} Nbd7 {[%emt 0:14:59]} 11. O-O {[%emt 0:00:25]} b5 {[%emt 0:07:17]} 12. Ba2 {[%emt 0:01:07]} c5 {[%emt 0:00:22]} 13. dxc5 {[%emt 0:05:43]} Nxc5 {[%emt 0:01:01]} 14. Ne5 {[%emt 0:18:15]} Rc8 {[%emt 0:11:01]} 15. Qe2 {[%emt 0:03:24]} Qb6 {[%emt 0:03:50]} 16. Rfd1 {[%emt 0:02:26]} Rfd8 {[%emt 0:02:04]} 17. Rxd8+ {[%emt 0:18:49]} Qxd8 {[%emt 0:03:52]} 18. Rd1 {[%emt 0:05:10]} Qe8 {[%emt 0:02:14]} 19. h3 {[%emt 0:02:28]} Rd8 {[%emt 0:09:20]} 20. f3 {[%emt 0:02:39]} Rxd1+ {[%emt 0:03:42]} 21. Qxd1 {[%emt 0:00:10]} Qd8 {[%emt 0:00:25]} 22. Qxd8+ {[%emt 0:00:57]} Bxd8 {[%emt 0:00:07]} 23. b4 {[%emt 0:05:03]} Ncd7 {[%emt 0:00:55]} 24. Kf2 {[%emt 0:01:24]} Kf8 {[%emt 0:10:16]} 25. Nxd7+ {[%emt 0:04:44]} Nxd7 {[%emt 0:00:03]} 26. Bd6+ {[%emt 0:00:09]} Be7 {[%emt 0:02:24]} 27. Bxe7+ {[%emt 0:00:38]} Kxe7 {[%emt 0:00:02]} 28. e4 {[%emt 0:00:28]} Kd6 {[%emt 0:03:49]} 29. Ke3 {[%emt 0:00:17]} f6 {[%emt 0:00:43]} 30. h4 {[%emt 0:02:30]} Nb6 {[%emt 0:01:49]} 31. Bb3 {[%emt 0:09:20]} 1/2-1/2

[Event "AUT Bundesliga 2022-23"]
[Site "Jenbach"]
[Date "2022.11.03"]
[Round "1.17"]
[White "Salvenmoser, Stefan"]
[Black "Breder, Dennis"]
[Result "1/2-1/2"]
[ECO "B31"]
[WhiteElo "2295"]
[BlackElo "2450"]
[Annotator "ChessBase"]
[PlyCount "52"]
[EventDate "2022.11.03"]
[EventType "team-tourn"]
[EventCountry "AUT"]
[SourceTitle "playchess.com"]
[Source "ChessBase"]
[SourceQuality "1"]
[TimeControl "40/5400+30:1800+30"]

1. e4 {[%emt 0:00:04]} c5 {[%emt 0:00:03]} 2. Nf3 {[%emt 0:00:11]} Nc6 {[%emt 0:00:01]} 3. Bb5 {[%emt 0:00:54]} g6 {[%emt 0:00:13]} 4. O-O {[%emt 0:00:47]} Bg7 {[%emt 0:00:04]} 5. Re1 {[%emt 0:01:19]} e5 {[%emt 0:00:34]} 6. b4 {[%emt 0:03:15]} Nxb4 {[%emt 0:02:20]} 7. Bb2 {[%emt 0:01:28]} Qc7 {[%emt 0:00:23]} 8. c3 {[%emt 0:05:36]} Nc6 {[%emt 0:00:32]} 9. d4 {[%emt 0:00:09]} d6 {[%emt 0:00:12]} 10. Na3 {[%emt 0:17:02]} a6 {[%emt 0:17:40]} 11. d5 {[%emt 0:02:05]} Ke7 {[%emt 0:00:11]} 12. Bf1 {[%emt 0:28:01]} Na7 {[%emt 0:01:24]} 13. c4 {[%emt 0:00:44]} Nf6 {[%emt 0:04:45]} 14. Nd2 {[%emt 0:04:08]} g5 {[%emt 0:22:32]} 15. Nc2 {[%emt 0:03:00]} Bd7 {[%emt 0:06:09]} 16. a4 {[%emt 0:02:22]} b6 {[%emt 0:11:58]} 17. Ne3 {[%emt 0:01:17]} h5 {[%emt 0:03:09]} 18. Bd3 {[%emt 0:01:33]} h4 {[%emt 0:07:29]} 19. Bc3 {[%emt 0:03:31]} Rag8 {[%emt 0:10:21]} 20. Ndf1 {[%emt 0:09:24]} Bh6 {[%emt 0:02:40]} 21. Rb1 {[%emt 0:03:35]} g4 {[%emt 0:01:00]} 22. Qb3 {[%emt 0:00:08]} Rb8 {[%emt 0:01:12]} 23. Rb2 {[%emt 0:03:12]} Nh5 {[%emt 0:00:53]} 24. Be2 {[%emt 0:01:41]} Nf6 {[%emt 0:00:06]} 25. Bd3 {[%emt 0:00:17]} Nh5 {[%emt 0:03:00]} 26. Be2 {[%emt 0:00:10]} Nf6 {[%emt 0:01:05]} 1/2-1/2

[Event "AUT Bundesliga 2022-23"]
[Site "Jenbach"]
[Date "2022.11.03"]
[Round "1.18"]
[White "Kienboeck, Benjamin"]
[Black "Lentrodt, Thomas"]
[Result "1-0"]
[ECO "C11"]
[WhiteElo "2129"]
[BlackElo "2252"]
[Annotator "ChessBase"]
[PlyCount "61"]
[EventDate "2022.11.03"]
[EventType "team-tourn"]
[EventCountry "AUT"]
[SourceTitle "playchess.com"]
[Source "ChessBase"]
[SourceQuality "1"]
[TimeControl "40/5400+30:1800+30"]

1. e4 {[%emt 0:00:04]} e6 {[%emt 0:00:14]} 2. d4 {[%emt 0:00:14]} d5 {[%emt 0:00:02]} 3. Nc3 {[%emt 0:00:23]} Nf6 {[%emt 0:00:10]} 4. e5 {[%emt 0:00:34]} Nfd7 {[%emt 0:00:02]} 5. f4 {[%emt 0:00:19]} c5 {[%emt 0:00:07]} 6. Nf3 {[%emt 0:00:16]} Nc6 {[%emt 0:00:12]} 7. Be3 {[%emt 0:01:35]} cxd4 {[%emt 0:02:21]} 8. Nxd4 {[%emt 0:01:17]} Nxd4 {[%emt 0:00:19]} 9. Bxd4 {[%emt 0:00:42]} Nb8 {[%emt 0:00:05]} 10. Bd3 {[%emt 0:01:47]} Nc6 {[%emt 0:00:30]} 11. Bf2 {[%emt 0:00:36]} a6 {[%emt 0:01:22]} 12. O-O {[%emt 0:04:07]} Qa5 {[%emt 0:06:24]} 13. Kh1 {[%emt 0:10:57]} Bc5 {[%emt 0:02:43]} 14. Qg4 {[%emt 0:04:27]} g6 {[%emt 0:06:54]} 15. Nb5 {[%emt 0:12:27]} Be7 {[%emt 0:09:30]} 16. Nd6+ {[%emt 0:14:26]} Kf8 {[%emt 0:04:27]} 17. Bh4 {[%emt 0:02:57]} Qd8 {[%emt 0:04:52]} 18. Bxe7+ {[%emt 0:03:08]} Qxe7 {[%emt 0:01:57]} 19. c4 {[%emt 0:02:26]} Nb4 {[%emt 0:07:08]} 20. Rad1 {[%emt 0:01:00]} Bd7 {[%emt 0:02:53]} 21. cxd5 {[%emt 0:16:48]} Nxd5 {[%emt 0:05:28]} 22. Qf3 {[%emt 0:00:34]} f5 {[%emt 0:08:33]} 23. Bc4 {[%emt 0:03:18]} Bc6 {[%emt 0:02:51]} 24. Bxd5 {[%emt 0:00:39]} Bxd5 {[%emt 0:00:36]} 25. Rxd5 {[%emt 0:00:31]} exd5 {[%emt 0:00:06]} 26. Qxd5 {[%emt 0:00:17]} Kg7 {[%emt 0:01:45]} 27. g4 {[%emt 0:02:09]} Rhf8 {[%emt 0:04:10]} 28. gxf5 {[%emt 0:01:31]} gxf5 {[%emt 0:00:14]} 29. Rg1+ {[%emt 0:00:36]} Kh8 {[%emt 0:00:59]} 30. e6 {[%emt 0:04:42]} Rad8 {[%emt 0:10:51]} 31. Qe5+ {[%emt 0:00:43]} 1-0

[Event "AUT Bundesliga 2022-23"]
[Site "Jenbach"]
[Date "2022.11.03"]
[Round "1.19"]
[White "Georgiadis, Nico"]
[Black "Bluebaum, Matthias"]
[Result "1/2-1/2"]
[ECO "C42"]
[WhiteElo "2577"]
[BlackElo "2647"]
[Annotator "ChessBase"]
[PlyCount "51"]
[EventDate "2022.11.03"]
[EventType "team-tourn"]
[EventCountry "AUT"]
[SourceTitle "playchess.com"]
[Source "ChessBase"]
[SourceQuality "1"]
[TimeControl "40/5400+30:1800+30"]

1. e4 {[%emt 0:00:04]} e5 {[%emt 0:01:47]} 2. Nf3 {[%emt 0:00:17]} Nf6 {[%emt 0:00:04]} 3. Nxe5 {[%emt 0:00:52]} d6 {[%emt 0:00:39]} 4. Nf3 {[%emt 0:00:07]} Nxe4 {[%emt 0:00:04]} 5. d4 {[%emt 0:00:13]} d5 {[%emt 0:00:13]} 6. Bd3 {[%emt 0:00:07]} Bd6 {[%emt 0:00:28]} 7. O-O {[%emt 0:00:26]} O-O {[%emt 0:00:08]} 8. c4 {[%emt 0:00:05]} c6 {[%emt 0:00:03]} 9. cxd5 {[%emt 0:01:45]} cxd5 {[%emt 0:00:28]} 10. Nc3 {[%emt 0:00:06]} Re8 {[%emt 0:06:50]} 11. Re1 {[%emt 0:00:40]} Nxc3 {[%emt 0:00:13]} 12. Rxe8+ {[%emt 0:00:06]} Qxe8 {[%emt 0:00:04]} 13. bxc3 {[%emt 0:00:08]} Nd7 {[%emt 0:02:14]} 14. Qb3 {[%emt 0:01:27]} Nb6 {[%emt 0:02:53]} 15. Ba3 {[%emt 0:00:10]} Bxa3 {[%emt 0:00:30]} 16. Qxa3 {[%emt 0:00:05]} Be6 {[%emt 0:03:40]} 17. h3 {[%emt 0:07:28]} h6 {[%emt 0:07:02]} 18. Re1 {[%emt 0:06:05]} Qf8 {[%emt 0:17:13]} 19. Qa5 {[%emt 0:00:28]} Qc8 {[%emt 0:03:38]} 20. Ne5 {[%emt 0:05:29]} Nd7 {[%emt 0:04:02]} 21. Ng6 {[%emt 0:24:24]} Qd8 {[%emt 0:08:25]} 22. Qb4 {[%emt 0:04:34]} Qc7 {[%emt 0:06:08]} 23. Ne7+ {[%emt 0:08:58]} Kh8 {[%emt 0:00:02]} 24. Ng6+ {[%emt 0:01:25]} Kg8 {[%emt 0:00:08]} 25. Ne7+ {[%emt 0:14:12]} Kh8 {[%emt 0:00:07]} 26. Ng6+ {[%emt 0:00:04]} 1/2-1/2

[Event "AUT Bundesliga 2022-23"]
[Site "Jenbach"]
[Date "2022.11.03"]
[Round "1.20"]
[White "Svane, Rasmus"]
[Black "Koelle, Tobias"]
[Result "1/2-1/2"]
[ECO "D02"]
[WhiteElo "2615"]
[BlackElo "2439"]
[Annotator "ChessBase"]
[PlyCount "197"]
[EventDate "2022.11.03"]
[EventType "team-tourn"]
[EventCountry "AUT"]
[SourceTitle "playchess.com"]
[Source "ChessBase"]
[SourceQuality "1"]
[TimeControl "40/5400+30:1800+30"]

1. Nf3 {[%emt 0:00:03]} d5 {[%emt 0:00:10]} 2. d4 {[%emt 0:01:29]} Nf6 {[%emt 0:00:07]} 3. c4 {[%emt 0:00:09]} e6 {[%emt 0:00:05]} 4. g3 {[%emt 0:02:06]} Bb4+ {[%emt 0:00:09]} 5. Bd2 {[%emt 0:00:04]} Be7 {[%emt 0:00:05]} 6. Bg2 {[%emt 0:00:07]} c6 {[%emt 0:00:18]} 7. Qc2 {[%emt 0:03:41]} Nbd7 {[%emt 0:00:26]} 8. O-O {[%emt 0:01:59]} b6 {[%emt 0:02:46]} 9. a4 {[%emt 0:06:59]} a5 {[%emt 0:06:33]} 10. cxd5 {[%emt 0:04:43]} cxd5 {[%emt 0:00:23]} 11. Nc3 {[%emt 0:00:10]} O-O {[%emt 0:05:32]} 12. Nb5 {[%emt 0:03:01]} Ba6 {[%emt 0:06:17]} 13. Rfc1 {[%emt 0:00:06]} Bxb5 {[%emt 0:09:28]} 14. axb5 {[%emt 0:00:07]} Rc8 {[%emt 0:09:50]} 15. Qa4 {[%emt 0:07:53]} Ne4 {[%emt 0:05:19]} 16. Be1 {[%emt 0:06:50]} Bd6 {[%emt 0:03:41]} 17. e3 {[%emt 0:00:46]} h6 {[%emt 0:06:08]} 18. Bf1 {[%emt 0:09:10]} g5 {[%emt 0:06:16]} 19. Nd2 {[%emt 0:07:09]} f5 {[%emt 0:07:39]} 20. Nxe4 {[%emt 0:07:21]} fxe4 {[%emt 0:00:32]} 21. Rc6 {[%emt 0:14:03]} Nb8 {[%emt 0:00:47]} 22. Bh3 {[%emt 0:04:05]} Kf7 {[%emt 0:09:19]} 23. Rxc8 {[%emt 0:01:24]} Qxc8 {[%emt 0:00:03]} 24. Qd1 {[%emt 0:05:14]} Qd7 {[%emt 0:04:50]} 25. Bf1 {[%emt 0:01:42]} Kg7 {[%emt 0:01:29]} 26. Rc1 {[%emt 0:01:57]} Qf7 {[%emt 0:03:09]} 27. Be2 {[%emt 0:01:35]} Qd7 {[%emt 0:05:00]} 28. Rc2 {[%emt 0:03:20]} Rc8 {[%emt 0:00:55]} 29. f3 {[%emt 0:02:20]} exf3 {[%emt 0:01:10]} 30. Bxf3 {[%emt 0:00:11]} Rxc2 {[%emt 0:01:04]} 31. Qxc2 {[%emt 0:00:02]} Qc7 {[%emt 0:00:49]} 32. Bc3 {[%emt 0:04:32]} Qf7 {[%emt 0:02:58]} 33. Bg4 {[%emt 0:00:40]} Nd7 {[%emt 0:00:28]} 34. Kg2 {[%emt 0:01:44]} Nf6 {[%emt 0:00:36]} 35. Be2 {[%emt 0:00:17]} Ne4 {[%emt 0:01:16]} 36. Bd3 {[%emt 0:00:38]} Nxc3 {[%emt 0:01:59]} 37. Qxc3 {[%emt 0:00:33]} Qc7 {[%emt 0:00:22]} 38. Qd2 {[%emt 0:00:39]} Bb4 {[%emt 0:00:45]} 39. Qd1 {[%emt 0:00:22]} Qf7 {[%emt 0:00:43]} 40. Bc2 {[%emt 0:00:00]} Kf8 {[%emt 0:00:00]} 41. e4 {[%emt 0:01:47]} dxe4 {[%emt 0:03:14]} 42. Bxe4 {[%emt 0:01:03]} Kg7 {[%emt 0:04:23]} 43. Qc2 {[%emt 0:04:10]} Qd7 {[%emt 0:05:12]} 44. Qc4 {[%emt 0:11:21]} Be7 {[%emt 0:02:43]} 45. b3 {[%emt 0:00:05]} Bf6 {[%emt 0:00:16]} 46. d5 {[%emt 0:00:10]} exd5 {[%emt 0:00:08]} 47. Bxd5 {[%emt 0:01:04]} Qe7 {[%emt 0:01:37]} 48. Be6 {[%emt 0:02:25]} Be5 {[%emt 0:03:22]} 49. Qc8 {[%emt 0:01:21]} Bc7 {[%emt 0:03:24]} 50. Qg8+ {[%emt 0:02:27]} Kf6 {[%emt 0:00:55]} 51. Bg4 {[%emt 0:00:28]} Qf7 {[%emt 0:02:22]} 52. Qh8+ {[%emt 0:01:13]} Qg7 {[%emt 0:00:15]} 53. Qc8 {[%emt 0:01:03]} Qe7 {[%emt 0:00:33]} 54. Qf5+ {[%emt 0:00:50]} Kg7 {[%emt 0:00:01]} 55. Bh5 {[%emt 0:00:10]} Kh8 {[%emt 0:02:20]} 56. Qg6 {[%emt 0:02:30]} Qf8 {[%emt 0:01:03]} 57. Bf3 {[%emt 0:03:14]} Qg7 {[%emt 0:05:05]} 58. Qe6 {[%emt 0:00:31]} Bd8 {[%emt 0:01:22]} 59. Bd5 {[%emt 0:00:46]} Be7 {[%emt 0:01:15]} 60. Qxb6 {[%emt 0:01:52]} Qb2+ {[%emt 0:00:30]} 61. Qf2 {[%emt 0:02:25]} Qxf2+ {[%emt 0:00:47]} 62. Kxf2 {[%emt 0:00:01]} Kg7 {[%emt 0:00:05]} 63. Ke3 {[%emt 0:00:33]} Bc5+ {[%emt 0:00:44]} 64. Ke4 {[%emt 0:00:05]} Kf6 {[%emt 0:00:05]} 65. Bc4 {[%emt 0:00:38]} Ke7 {[%emt 0:00:41]} 66. Kd5 {[%emt 0:01:15]} Bg1 {[%emt 0:00:25]} 67. Kc6 {[%emt 0:00:45]} Bxh2 {[%emt 0:00:31]} 68. g4 {[%emt 0:00:04]} Kd8 {[%emt 0:00:30]} 69. Be6 {[%emt 0:00:15]} Bf4 {[%emt 0:00:51]} 70. Bf5 {[%emt 0:00:07]} Bg3 {[%emt 0:00:06]} 71. Kb7 {[%emt 0:00:21]} Bf4 {[%emt 0:00:31]} 72. b6 {[%emt 0:00:22]} Be3 {[%emt 0:00:33]} 73. Ka6 {[%emt 0:00:10]} Bd4 {[%emt 0:00:27]} 74. Kxa5 {[%emt 0:00:12]} Be3 {[%emt 0:00:32]} 75. Kb5 {[%emt 0:00:15]} Bf2 {[%emt 0:00:39]} 76. Kc6 {[%emt 0:00:10]} Be3 {[%emt 0:00:41]} 77. b4 {[%emt 0:00:31]} Bf2 {[%emt 0:00:05]} 78. b5 {[%emt 0:02:02]} Be3 {[%emt 0:00:17]} 79. b7 {[%emt 0:00:56]} Bf4 {[%emt 0:00:30]} 80. b6 {[%emt 0:00:07]} Bb8 {[%emt 0:00:24]} 81. Be6 {[%emt 0:00:31]} Ke7 {[%emt 0:00:19]} 82. Bc8 {[%emt 0:00:08]} Kd8 {[%emt 0:00:10]} 83. Bf5 {[%emt 0:00:31]} Ke7 {[%emt 0:00:10]} 84. Kd5 {[%emt 0:00:04]} Kf6 {[%emt 0:00:33]} 85. Bd7 {[%emt 0:00:37]} Ke7 {[%emt 0:00:12]} 86. Bb5 {[%emt 0:00:11]} Kf6 {[%emt 0:00:27]} 87. Bd7 {[%emt 0:01:40]} Ke7 {[%emt 0:00:02]} 88. Bc8 {[%emt 0:00:07]} Bf4 {[%emt 0:00:58]} 89. Be6 {[%emt 0:00:57]} Bb8 {[%emt 0:00:05]} 90. Bf5 {[%emt 0:00:06]} Kf6 {[%emt 0:00:12]} 91. Bd3 {[%emt 0:01:21]} Ke7 {[%emt 0:00:08]} 92. Kc6 {[%emt 0:00:10]} Kd8 {[%emt 0:00:07]} 93. Kd5 {[%emt 0:00:59]} Ke7 {[%emt 0:00:06]} 94. Ke4 {[%emt 0:00:03]} Kd6 {[%emt 0:01:10]} 95. Kf5 {[%emt 0:00:05]} Kc6 {[%emt 0:00:03]} 96. Be4+ {[%emt 0:00:09]} Kxb6 {[%emt 0:00:06]} 97. Kg6 {[%emt 0:00:03]} Bf4 {[%emt 0:00:13]} 98. Kxh6 {[%emt 0:00:05]} Kc7 {[%emt 0:00:05]} 99. Kg6 {[%emt 0:00:04]} 1/2-1/2